bitfinex-derivatives/quotes_SOLF0:USTF0_20250522
["timestamp","ask_amount","ask_price","bid_price","bid_amount"]
[1747925787503,124.42,178.83,178.77,1.9672]
[1747925787704,5.5922,178.81,178.77,7.5603]
[1747925787907,5.5922,178.81,178.77,1.9672]
[1747925788201,5.5922,178.81,178.75,1.9496]
[1747925788503,0.04034049,178.8,178.75,1.9496]
[1747925789004,5.9717,178.87,178.75,1.9496]
[1747925789005,5.5903,178.87,178.76,0.03863234]
[1747925789303,169.46,178.86,178.69,11.1909]
[1747925789494,169.46,178.86,178.63,3.28495414]
[1747925789495,124.46,178.86,178.63,3.28495414]
[1747925789698,3514.18,178.85,178.6,26.2705706]
[1747925790004,15.78359852,178.65,178.55,3.25126828]
[1747925790198,15.78359852,178.59,178.52,26.01014625]
[1747925790503,132.91656071,178.58,178.54,1.107e-05]
[1747925790806,15.78359852,178.55,178.49,39.37777844]
[1747925791004,132.88,178.58,178.5,4.10282109]
[1747925791194,132.88,178.58,178.49,43.48059953]
[1747925791391,15.8200856,178.53,178.49,43.48059953]
[1747925791605,132.88,178.52,178.49,39.37777844]
[1747925792098,5.602,178.49,178.48,21.74404178]
[1747925792496,138.481,178.52,178.51,4.10282109]
[1747925792701,132.88,178.52,178.41,102.50110881]
[1747925792902,132.88,178.52,178.43,5.6039]
[1747925793096,132.97592913,178.53,178.41,102.50110881]
[1747925793306,132.97592913,178.53,178.42,155.92372145]
[1747925793500,138.57682913,178.53,178.42,155.92372145]
[1747925793702,5.63682913,178.53,178.42,155.92372145]
[1747925793902,0.03592913,178.53,178.42,155.92372145]
[1747925794106,5.6011,178.52,178.42,155.92372145]
[1747925794304,0.03592913,178.53,178.42,155.92372145]
[1747925794605,0.03592913,178.53,178.42,22.98372145]
[1747925795108,5.6026,178.47,178.41,44.20923747]
[1747925795295,5.64552259,178.47,178.41,44.20923747]
[1747925795500,5.64552259,178.47,178.41,3.8236]
[1747925795702,0.04292259,178.47,178.41,3.8236]
[1747925796304,5.6032,178.45,178.41,1.9031]
[1747925796705,133.0,178.44,178.4,98.44444611]
[1747925798608,5.6045,178.41,178.4,98.44444611]
[1747925799207,0.04078844,178.42,178.4,98.44444611]
[1747925799400,0.04078844,178.42,178.35,2.0574]
[1747925800805,0.04078844,178.42,178.38,5.6054]
[1747925801000,5.64498844,178.42,178.35,2.0574]
[1747925801209,0.04078844,178.42,178.37,5.6057]
[1747925801415,0.04078844,178.42,178.35,2.0574]
[1747925801809,0.04078844,178.42,178.37,5.6055]
[1747925802012,133.06,178.45,178.35,2.0574]
[1747925802912,5.6044,178.42,178.36,5.606]
[1747925803109,0.03903356,178.41,178.37,0.03805422]
[1747925804212,622.26,178.49,178.37,0.03805422]
[1747925804405,622.26,178.49,178.36,138.52]
[1747925804605,622.26,178.49,178.4,5.6045]
[1747925804821,622.26,178.49,178.36,138.52]
[1747925805114,0.0376215,178.44,178.41,0.03793429]
[1747925806523,5.6412215,178.44,178.41,0.03793429]
[1747925807021,0.0376215,178.44,178.41,0.03793429]
[1747925807623,0.0376215,178.44,178.42,5.6041]
[1747925807825,0.0376215,178.44,178.41,0.03793429]
[1747925808123,5.6412215,178.44,178.41,0.03793429]
[1747925808319,0.0376215,178.44,178.41,0.03793429]
[1747925808920,5.6042,178.42,178.41,0.03793429]
[1747925809225,0.0376215,178.44,178.41,0.03793429]
[1747925809625,5.6041,178.43,178.41,0.03793429]
[1747925810125,0.0376215,178.44,178.41,0.03793429]
[1747925810727,5.6042,178.42,178.41,0.03793429]
[1747925811322,5.6039,178.43,178.41,0.03793429]
[1747925812226,0.0376215,178.44,178.41,0.03793429]
[1747925812726,138.6176215,178.44,178.41,0.03793429]
[1747925812921,5.6042,178.42,178.41,0.03793429]
[1747925813820,138.58,178.43,178.41,0.03793429]
[1747925814322,5.6042,178.42,178.41,0.03793429]
[1747925816527,138.58,178.43,178.41,0.03793429]
[1747925817627,5.6042,178.42,178.41,0.03793429]
[1747925818731,138.58,178.43,178.41,0.03793429]
[1747925818932,0.0376215,178.44,178.41,0.03793429]
[1747925819228,622.32,178.49,178.44,5.6034]
[1747925819429,622.32,178.49,178.35,140.6374]
[1747925820131,0.03571013,178.44,178.4,0.04174723]
[1747925820323,138.58,178.49,178.4,138.62174723]
[1747925820525,500.07951987,178.58,178.4,138.62174723]
[1747925820718,500.07951987,178.58,178.4,138.58]
[1747925820719,245.08,178.57,178.4,138.58]
[1747925821325,0.03572306,178.5,178.47,0.03915875]
[1747925821529,0.04268422,178.5,178.47,0.03915875]
[1747925821927,5.6026,178.48,178.47,0.03915875]
[1747925823030,5.6026,178.48,178.47,5.875e-05]
[1747925823529,5.6045,178.41,178.39,2.0421]
[1747925824434,5.64703588,178.42,178.39,2.0421]
[1747925825230,5.6047,178.41,178.39,2.0421]
[1747925825429,0.04273588,178.42,178.39,2.0421]
[1747925825735,5.64703588,178.42,178.39,2.0421]
[1747925826125,0.04273588,178.42,178.39,2.0421]
[1747925826333,5.6051,178.39,178.38,0.03606289]
[1747925826525,0.04273588,178.42,178.38,0.03606289]
[1747925826937,5.605,178.4,178.38,0.03606289]
[1747925827234,0.04273588,178.42,178.38,0.03606289]
[1747925827434,5.603,178.46,178.38,0.03606289]
[1747925827936,144.2027,178.47,178.43,5.6036]
[1747925828135,138.6,178.47,178.35,3.8019]
[1747925828631,0.03824277,178.43,178.42,5.6042]
[1747925828836,138.6,178.51,178.41,0.03620685]
[1747925829035,138.6,178.51,178.4,138.6]
[1747925829839,0.04290199,178.47,178.44,0.04222066]
[1747925830445,5.6032,178.45,178.44,0.04222066]
[1747925830741,138.58,178.46,178.35,1.8652]
[1747925831238,5.605,178.4,178.36,5.6059]
[1747925831432,138.58,178.46,178.35,1.8652]
[1747925831636,5.6041,178.43,178.39,5.605]
[1747925831844,0.04085709,178.43,178.39,0.03819207]
[1747925832034,0.04085709,178.43,178.4,5.6046]
[1747925832231,0.04085709,178.43,178.39,0.03819207]
[1747925832439,138.58,178.48,178.39,0.03819207]
[1747925832743,5.6038,178.44,178.41,5.6044]
[1747925833040,5.15019321,178.49,178.37,138.58]
[1747925833341,0.04159191,178.45,178.41,0.0363869]
[1747925833639,5.15019321,178.49,178.47,5.6024]
[1747925833640,2.05299321,178.49,178.47,5.6024]
[1747925833832,2.05299321,178.49,178.42,138.86]
[1747925834227,5.6011,178.52,178.42,138.86]
[1747925834734,0.04215447,178.49,178.48,5.6023]
[1747925834936,145.75639433,178.53,178.45,0.0416342]
[1747925835132,145.75639433,178.53,178.46,5.6029]
[1747925835536,145.75639433,178.53,178.45,0.0416342]
[1747925835733,138.86,178.53,178.49,5.6018]
[1747925836041,144.49731842,178.53,178.49,5.63988969]
[1747925836339,138.89641842,178.53,178.49,5.63988969]
[1747925836537,138.89641842,178.53,178.49,0.03808969]
[1747925837040,144.49731842,178.53,178.5,5.6016]
[1747925837240,138.89641842,178.53,178.49,0.03808969]
[1747925837642,138.89641842,178.53,178.49,5.63998969]
[1747925837940,138.89641842,178.53,178.49,0.03808969]
[1747925838141,5.6012,178.52,178.49,0.03808969]
[1747925838730,138.89641842,178.53,178.5,5.6016]
[1747925838934,0.03641842,178.53,178.49,0.03808969]
[1747925839634,5.6017,178.5,178.49,0.03808969]
[1747925842637,5.6017,178.5,178.49,8.969e-05]
[1747925848340,5.6037,178.44,178.4,1.9608]
[1747925848845,2.0027,178.51,178.4,7.5655]
[1747925849046,2.0027,178.51,178.4,1.9608]
[1747925849246,0.0385015,178.47,178.44,0.04257112]
[1747925849544,5.6034,178.45,178.44,0.04257112]
[1747925852040,5.6034,178.45,178.44,7.112e-05]
[1747925852544,150.0638015,178.47,178.35,2.0397]
[1747925852746,1.9127,178.46,178.35,2.0397]
[1747925853534,0.03734632,178.42,178.39,0.03939469]
[1747925853735,0.03734632,178.42,178.4,5.6047]
[1747925853939,0.03734632,178.42,178.39,0.03939469]
[1747925855348,0.03734632,178.42,178.41,5.6045]
[1747925855742,138.82,178.48,178.39,0.03939469]
[1747925856648,0.04231111,178.45,178.41,5.6044]
[1747925856947,0.04231111,178.45,178.41,5.6413057]
[1747925857247,5.64581111,178.45,178.41,0.0369057]
[1747925857448,0.04231111,178.45,178.41,0.0369057]
[1747925857750,5.64571111,178.45,178.41,5.6412057]
[1747925857951,5.64571111,178.45,178.41,0.0369057]
[1747925858151,0.04231111,178.45,178.41,0.0369057]
[1747925858947,5.6035,178.44,178.41,0.0369057]
[1747925859142,0.04231111,178.45,178.41,0.0369057]
[1747925859552,138.84,178.52,178.41,138.8769057]
[1747925859849,138.84,178.52,178.42,1.9875]
[1747925860047,5.6014,178.51,178.48,5.6021]
[1747925860348,138.84,178.52,178.42,1.9875]
[1747925860547,0.03794251,178.49,178.45,0.03547525]
[1747925861849,5.6029,178.46,178.45,0.03547525]
[1747925862746,0.03794251,178.49,178.45,0.03547525]
[1747925863751,5.6027,178.47,178.45,0.03547525]
[1747925864051,0.03794251,178.49,178.45,0.03547525]
[1747925864547,0.03794251,178.49,178.46,5.6029]
[1747925864748,0.03794251,178.49,178.45,0.03547525]
[1747925865250,0.03794251,178.49,178.48,5.6023]
[1747925866150,0.03794251,178.49,178.45,0.03547525]
[1747925866853,0.03794251,178.49,178.48,5.6023]
[1747925867051,0.03794251,178.49,178.45,0.03547525]
[1747925867453,0.03794251,178.49,178.48,5.6023]
[1747925868447,10.31875278,178.61,178.48,737.1]
[1747925868649,10.31875278,178.61,178.48,747.29128319]
[1747925868844,10.31875278,178.61,178.49,140.84]
[1747925869044,10.31875278,178.61,178.48,484.18]
[1747925869242,151.13875278,178.61,178.48,625.0]
[1747925869444,0.03783708,178.56,178.53,0.04164519]
[1747925870258,0.03783708,178.56,178.53,5.64214519]
[1747925871757,5.6001,178.55,178.53,0.04164519]
[1747925871952,0.03783708,178.56,178.53,0.04164519]
[1747925872257,5.63783708,178.56,178.53,0.04164519]
[1747925872449,0.03783708,178.56,178.53,0.04164519]
[1747925872850,5.6003,178.55,178.53,0.04164519]
[1747925873058,0.03783708,178.56,178.53,0.04164519]
[1747925874160,0.03783708,178.56,178.53,140.84164519]
[1747925874661,5.63783708,178.56,178.53,140.84164519]
[1747925874861,0.03783708,178.56,178.53,0.04164519]
[1747925875361,5.63773708,178.56,178.53,0.04164519]
[1747925875560,0.03783708,178.56,178.53,0.04164519]
[1747925875958,0.03783708,178.56,178.54,5.6003]
[1747925876159,0.03783708,178.56,178.53,0.04164519]
[1747925876464,0.03783708,178.56,178.53,5.64214519]
[1747925876658,0.03783708,178.56,178.53,0.04164519]
[1747925877465,5.6003,178.55,178.53,0.04164519]
[1747925877861,0.03783708,178.56,178.53,0.04164519]
[1747925878564,0.03783708,178.56,178.55,5.6001]
[1747925880369,140.78,178.64,178.55,140.78]
[1747925880865,5.5984,178.61,178.57,5.5994]
[1747925881068,140.78,178.64,178.55,140.78]
[1747925881254,0.0394687,178.61,178.58,0.03590477]
[1747925881459,5.5988,178.59,178.58,0.03590477]
[1747925882762,0.0394687,178.61,178.58,0.03590477]
[1747925882961,0.0394687,178.61,178.58,5.63500477]
[1747925883161,0.0394687,178.61,178.58,0.03590477]
[1747925883871,5.5988,178.6,178.58,0.03590477]
[1747925884065,0.0394687,178.61,178.58,0.03590477]
[1747925884572,5.5988,178.59,178.58,0.03590477]
[1747925885669,0.0394687,178.61,178.58,0.03590477]
[1747925886069,0.0394687,178.61,178.6,5.5985]
[1747925886667,499.69128319,178.77,178.58,0.03590477]
[1747925886967,140.76,178.7,178.58,106.42]
[1747925887269,5.5962,178.68,178.64,5.5971]
[1747925887565,140.76,178.7,178.61,140.74]
[1747925887869,0.04148124,178.67,178.65,5.5968]
[1747925888170,0.03629595,178.68,178.65,5.5968]
[1747925888863,5.63249595,178.68,178.64,5.63935115]
[1747925889058,5.63249595,178.68,178.64,0.04215115]
[1747925890072,0.03629595,178.68,178.64,0.04215115]
[1747925890363,5.5964,178.67,178.64,5.63935115]
[1747925890570,0.03629595,178.68,178.64,0.04215115]
[1747925891971,0.03629595,178.68,178.65,5.5968]
[1747925892173,0.03629595,178.68,178.64,0.04215115]
[1747925892666,5.597,178.65,178.64,0.04215115]
[1747925895771,5.5967,178.66,178.64,0.04215115]
[1747925896163,138.57629595,178.68,178.64,0.04215115]
[1747925896366,0.03629595,178.68,178.64,0.04215115]
[1747925897373,5.5969,178.66,178.64,0.04215115]
[1747925897563,0.03629595,178.68,178.64,0.04215115]
[1747925898274,0.03629595,178.68,178.64,5.63925115]
[1747925898469,5.597,178.65,178.64,0.04215115]
[1747925900178,5.5967,178.66,178.64,0.04215115]
[1747925900470,0.03629595,178.68,178.64,0.04215115]
[1747925900877,0.03629595,178.68,178.65,5.5967]
[1747925901179,0.03629595,178.68,178.64,0.04215115]
[1747925901478,0.03629595,178.68,178.67,5.5963]
[1747925902067,0.03629595,178.68,178.66,5.5965]
[1747925902269,0.03629595,178.68,178.65,2.0265]
[1747925903673,5.17829058,178.8,178.69,5.5954]
[1747925903674,622.42,178.77,178.69,5.5954]
[1747925903869,622.42,178.77,178.65,2.0265]
[1747925904381,5.5959,178.69,178.65,7.6232]
[1747925904571,0.03645782,178.69,178.65,0.03592962]
[1747925905071,5.5961,178.68,178.65,0.03592962]
[1747925905281,0.03645782,178.69,178.65,0.03592962]
[1747925905581,5.596,178.68,178.65,0.03592962]
[1747925906285,5.5964,178.67,178.65,0.03592962]
[1747925906476,0.03645782,178.69,178.65,0.03592962]
[1747925906783,5.5966,178.67,178.65,0.03592962]
[1747925906984,0.03645782,178.69,178.65,0.03592962]
[1747925909288,0.03645782,178.69,178.68,5.596]
[1747925910189,5.5945,178.73,178.65,0.03592962]
[1747925910389,138.52,178.77,178.64,106.36]
[1747925910690,5.5947,178.73,178.69,5.5957]
[1747925910889,138.52,178.77,178.69,5.5957]
[1747925911187,0.03773804,178.75,178.71,0.0403367]
[1747925911391,5.5948,178.72,178.71,0.0403367]
[1747925912189,5.5946,178.73,178.71,0.0403367]
[1747925912389,0.03773804,178.75,178.71,0.0403367]
[1747925912592,5.5948,178.72,178.71,0.0403367]
[1747925913092,5.5942,178.74,178.71,0.0403367]
[1747925913392,0.03773804,178.75,178.71,0.0403367]
[1747925913685,5.5948,178.72,178.71,0.0403367]
[1747925913890,0.03773804,178.75,178.71,0.0403367]
[1747925914295,5.5947,178.73,178.71,0.0403367]
[1747925914894,5.5948,178.72,178.71,0.0403367]
[1747925916492,5.5945,178.73,178.71,0.0403367]
[1747925916689,0.03773804,178.75,178.71,0.0403367]
[1747925917092,5.5944,178.74,178.71,0.0403367]
[1747925917386,0.03773804,178.75,178.71,0.0403367]
[1747925918093,0.03773804,178.75,178.73,5.5943]
[1747925918487,5.63163804,178.75,178.73,5.5943]
[1747925918689,0.03773804,178.75,178.71,0.0403367]
[1747925919598,5.5942,178.74,178.71,5.6354367]
[1747925920096,5.5942,178.74,178.71,0.0403367]
[1747925920396,0.03773804,178.75,178.71,0.0403367]
[1747925920895,5.5946,178.73,178.71,0.0403367]
[1747925921297,0.03773804,178.75,178.71,0.0403367]
[1747925921498,5.5945,178.73,178.71,0.0403367]
[1747925921894,0.03773804,178.75,178.71,0.0403367]
[1747925922089,5.5943,178.74,178.71,5.6351367]
[1747925922796,0.03773804,178.75,178.71,0.0403367]
[1747925922797,5.5945,178.73,178.71,0.0403367]
[1747925923795,0.03773804,178.75,178.71,0.0403367]
[1747925924196,5.5941,178.74,178.71,5.6353367]
[1747925924498,0.03773804,178.75,178.71,0.0403367]
[1747925924699,0.03773804,178.75,178.74,5.5941]
[1747925924892,5.17829058,178.8,178.74,136.4]
[1747925925396,5.17829058,178.8,178.79,5.5926]
[1747925926200,0.03847639,178.81,178.78,5.63420631]
[1747925926702,0.03847639,178.81,178.79,5.5924]
[1747925926900,0.03847639,178.81,178.78,0.04140631]
[1747925928006,0.03847639,178.81,178.79,5.5926]
[1747925928206,0.03847639,178.81,178.78,0.04140631]
[1747925929713,0.03847639,178.81,178.8,5.5923]
[1747925930604,0.03847639,178.81,178.78,0.04140631]
[1747925931112,0.03847639,178.81,178.79,5.5926]
[1747925931609,0.03847639,178.81,178.78,0.04140631]
[1747925931909,0.03847639,178.81,178.8,5.5923]
[1747925932606,141.9899,178.88,178.84,5.5908]
[1747925932803,7.08719058,178.9,178.79,142.3562]
[1747925932999,5.17829058,178.93,178.79,142.3562]
[1747925933712,5.17829058,178.93,178.84,0.03670372]
[1747925933913,5.17829058,178.93,178.85,136.36]
[1747925935714,5.17829058,178.93,178.86,1.9253]
[1747925935910,5.17829058,178.93,178.88,0.03875323]
[1747925936314,10.76679058,178.93,178.89,5.5892]
[1747925936517,1.899,178.97,178.88,0.03875323]
[1747925937015,5.588,178.94,178.9,5.5889]
[1747925937215,5.588,178.94,178.9,5.62969445]
[1747925937416,1.899,178.97,178.9,5.62969445]
[1747925938211,5.5882,178.94,178.9,5.62969445]
[1747925939012,1.899,178.97,178.9,0.04079445]
[1747925939619,5.5888,178.91,178.9,0.04079445]
[1747925940114,1.899,178.97,178.9,0.04079445]
[1747925941915,5.5881,178.94,178.9,5.62989445]
[1747925942114,1.899,178.97,178.9,0.04079445]
[1747925943217,5.5883,178.93,178.9,5.62989445]
[1747925943420,1.899,178.97,178.9,5.62989445]
[1747925943820,1.899,178.97,178.9,0.04079445]
[1747925944218,5.5881,178.94,178.9,0.04079445]
[1747925944416,5.5881,178.94,178.9,5.62969445]
[1747925944619,1.899,178.97,178.9,5.62969445]
[1747925944820,5.5881,178.94,178.9,5.62969445]
[1747925945625,136.36,178.98,178.9,0.04079445]
[1747925945821,2.0277,178.99,178.9,136.32079445]
[1747925946121,138.2994,179.02,178.9,136.32079445]
[1747925946324,138.2994,179.02,178.94,0.03811951]
[1747925946820,138.2994,179.02,178.96,5.5871]
[1747925947319,5.5865,178.99,178.94,5.62591951]
[1747925947517,5.5865,178.99,178.94,0.03811951]
[1747925947717,5.5865,178.99,178.95,5.5875]
[1747925948611,2.0194,179.02,178.94,0.03811951]
[1747925949014,483.32,179.05,178.95,136.26]
[1747925949320,136.26,179.06,178.98,0.03537926]
[1747925949822,5.585,179.04,179.0,5.5858]
[1747925950022,5.585,179.04,178.98,0.03537926]
[1747925950323,136.26,179.06,178.98,0.03537926]
[1747925951027,5.5848,179.05,178.98,0.03537926]
[1747925951523,5.5848,179.05,179.0,5.5858]
[1747925951713,5.5848,179.05,178.98,0.03537926]
[1747925952325,136.26,179.06,178.98,0.03537926]
[1747925953226,136.26,179.06,178.99,5.5863]
[1747925953828,5.5854,179.03,178.98,5.62197926]
[1747925954126,136.26,179.06,178.98,0.03537926]
[1747925954320,9.99034578,179.03,178.98,0.03537926]
[1747925954520,5.5863,178.99,178.98,0.03537926]
[1747925955022,5.588,178.94,178.9,106.18]
[1747925955222,135.9436,179.01,178.89,133.98]
[1747925956125,0.0359164,178.97,178.93,0.03858671]
[1747925956830,5.5878,178.95,178.93,0.03858671]
[1747925957021,0.0359164,178.97,178.93,0.03858671]
[1747925957729,5.5879,178.94,178.93,0.03858671]
[1747925959538,0.0359164,178.97,178.93,0.03858671]
[1747925961932,5.5879,178.94,178.93,0.03858671]
[1747925963435,0.0359164,178.97,178.93,0.03858671]
[1747925964428,5.5879,178.94,178.93,0.03858671]
[1747925966035,5.5876,178.95,178.93,0.03858671]
[1747925966435,0.0359164,178.97,178.93,0.03858671]
[1747925966634,5.5879,178.94,178.93,0.03858671]
[1747925968431,5.5873,178.96,178.93,5.62678671]
[1747925968727,0.0359164,178.97,178.93,0.03858671]
[1747925968936,0.0359164,178.97,178.96,5.5873]
[1747925969135,0.0359164,178.97,178.93,0.03858671]
[1747925970239,134.0,178.96,178.84,2.0126]
[1747925970431,2.0441,178.95,178.84,2.0126]
[1747925971025,2.0441,178.95,178.85,5.5906]
[1747925971225,0.04186287,178.92,178.88,0.03650488]
[1747925971730,5.5895,178.89,178.88,0.03650488]
[1747925971936,134.0,178.91,178.83,134.0]
[1747925972137,134.0,178.91,178.78,134.0]
[1747925972333,149.74152486,178.91,178.77,1.9965]
[1747925972639,5.5912,178.84,178.79,5.5926]
[1747925972837,134.0,178.86,178.77,1.9965]
[1747925973141,0.04279521,178.83,178.8,0.04039501]
[1747925973441,134.0,178.89,178.85,5.5907]
[1747925973636,0.03820877,178.89,178.85,0.03723764]
[1747925973831,5.62770877,178.89,178.85,5.62773764]
[1747925974031,5.62770877,178.89,178.85,0.03723764]
[1747925974242,0.03820877,178.89,178.85,0.03723764]
[1747925976136,0.03820877,178.89,178.88,5.5898]
[1747925976839,0.03820877,178.89,178.87,5.59]
[1747925977041,0.03820877,178.89,178.85,0.03723764]
[1747925977239,0.03820877,178.89,178.87,5.5901]
[1747925977640,0.03820877,178.89,178.85,0.03723764]
[1747925978945,0.03820877,178.89,178.88,5.5898]
[1747925983042,0.03820877,178.89,178.85,0.03723764]
[1747925983043,5.5898,178.88,178.85,0.03723764]
[1747925984043,5.5898,178.88,178.85,5.62783764]
[1747925984348,5.5901,178.87,178.85,0.03723764]
[1747925985146,0.03820877,178.89,178.85,0.03723764]
[1747925985546,5.5903,178.87,178.85,0.03723764]
[1747925986546,5.5899,178.88,178.85,0.03723764]
[1747925986745,0.03820877,178.89,178.85,0.03723764]
[1747925988448,5.5898,178.88,178.85,0.03723764]
[1747925988754,0.03820877,178.89,178.85,0.03723764]
[1747925989153,5.5903,178.87,178.85,0.03723764]
[1747925989857,5.5904,178.87,178.85,0.03723764]
[1747925990258,5.5904,178.86,178.85,0.03723764]
[1747925990651,0.03820877,178.89,178.85,0.03723764]
[1747925990852,5.59,178.88,178.85,0.03723764]
[1747925991052,0.03820877,178.89,178.85,0.03723764]
[1747925991957,5.5904,178.86,178.85,0.03723764]
[1747925996651,5.5904,178.86,178.85,3.764e-05]
[1747925996857,5.5919,178.82,178.78,131.3]
[1747925997159,9.99010162,178.87,178.8,5.5923]
[1747925997463,5.5912,178.84,178.8,5.5923]
[1747925997762,0.03715377,178.84,178.81,5.5919]
[1747925998662,5.62825377,178.84,178.81,5.5919]
[1747925998863,0.03715377,178.84,178.8,0.03615498]
[1747926001057,0.03715377,178.84,178.83,5.5913]
[1747926001253,5.17829058,178.89,178.81,4.0353]
[1747926001454,6.91144082,178.91,178.9,5.5891]
[1747926001857,6.91144082,178.91,178.82,249.48520162]
[1747926002259,6.91144082,178.91,178.85,0.04241775]
[1747926002461,0.03559523,178.9,178.85,0.04241775]
[1747926002661,5.62489523,178.9,178.85,0.04241775]
[1747926002960,0.03559523,178.9,178.85,0.04241775]
[1747926004465,5.5898,178.88,178.85,5.63291775]
[1747926004665,0.03559523,178.9,178.85,0.04241775]
[1747926005562,0.03559523,178.9,178.89,5.5895]
[1747926005859,142.09904082,178.99,178.87,131.32]
[1747926006067,6.91144082,178.95,178.94,5.5879]
[1747926006460,6.91144082,178.95,178.87,131.32]
[1747926006660,6.91144082,178.95,178.93,5.588]
[1747926006864,6.91144082,178.95,178.92,0.03941701]
[1747926007366,6.91144082,178.95,178.92,5.62791701]
[1747926008369,5.62316604,178.96,178.92,5.62791701]
[1747926008569,0.03566604,178.96,178.92,5.62791701]
[1747926008764,0.03566604,178.96,178.92,0.03941701]
[1747926009165,0.03566604,178.96,178.82,483.12]
[1747926009166,9.99010162,178.94,178.85,5.5906]
[1747926009371,131.3,178.93,178.8,136.65490194]
[1747926009965,9.99010162,178.94,178.8,136.65490194]
[1747926010165,0.03970938,178.9,178.8,136.65490194]
[1747926010371,0.03970938,178.9,178.87,0.04129124]
[1747926010773,5.62890938,178.9,178.87,5.63139124]
[1747926011070,0.03970938,178.9,178.87,5.63139124]
[1747926011574,0.03970938,178.9,178.87,0.04129124]
[1747926012777,0.03970938,178.9,178.89,5.5895]
[1747926015877,0.03970938,178.9,178.87,0.04129124]
[1747926016875,0.03970938,178.9,178.89,5.5895]
[1747926017272,0.03970938,178.9,178.87,0.04129124]
[1747926017475,0.03970938,178.9,178.89,5.5895]
[1747926017872,0.03970938,178.9,178.87,0.04129124]
[1747926018081,0.03970938,178.9,178.89,5.5895]
[1747926022678,0.03970938,178.9,178.87,0.04129124]
[1747926023084,0.03970938,178.9,178.89,5.5895]
[1747926023282,0.03970938,178.9,178.87,0.04129124]
[1747926024284,0.03970938,178.9,178.88,5.5896]
[1747926025073,0.03970938,178.9,178.89,5.5895]
[1747926025278,0.03970938,178.9,178.87,0.04129124]
[1747926026286,0.03970938,178.9,178.88,5.5896]
[1747926026786,0.03970938,178.9,178.87,0.04129124]
[1747926027083,0.03970938,178.9,178.89,5.5895]
[1747926027287,9.38e-06,178.9,178.89,5.5895]
[1747926027586,6.91144082,178.98,178.87,10.03139286]
[1747926027779,6.91144082,178.98,178.87,9.99010162]
[1747926028180,6.91144082,178.97,178.87,9.99010162]
[1747926028384,0.03720956,178.94,178.9,0.03574115]
[1747926028684,0.03720956,178.94,178.92,5.5885]
[1747926029087,0.03720956,178.94,178.9,0.03574115]
[1747926029275,0.03720956,178.94,178.93,5.5882]
[1747926029886,6.91144082,178.97,178.96,5.5873]
[1747926030785,6.91144082,178.97,178.92,2.024]
[1747926030982,0.0379947,178.96,178.93,0.03578959]
[1747926031480,5.5879,178.94,178.93,0.03578959]
[1747926034290,130.14,178.95,178.93,0.03578959]
[1747926034893,130.14,178.95,178.86,130.14]
[1747926035295,5.5895,178.89,178.86,130.14]
[1747926035584,130.14,178.95,178.87,5.5901]
[1747926035782,5.5893,178.9,178.86,130.14]
[1747926035980,0.04210057,178.9,178.86,130.1820163]
[1747926036387,5.5901,178.87,178.86,0.0420163]
[1747926036791,130.16,178.88,178.8,4.11997211]
[1747926037488,3.9376,178.89,178.8,4.11997211]
[1747926037689,3.9376,178.89,178.83,0.03896819]
[1747926037995,0.03669894,178.86,178.83,0.03896819]
[1747926038187,0.03669894,178.86,178.84,5.5908]
[1747926038382,0.03669894,178.86,178.83,0.03896819]
[1747926038591,0.03669894,178.86,178.85,5.5907]
[1747926039394,0.03669894,178.86,178.84,5.5909]
[1747926039795,0.03669894,178.86,178.83,0.03896819]
[1747926039989,0.03669894,178.86,178.83,5.63026819]
[1747926040491,5.62729894,178.86,178.83,0.03896819]
[1747926040889,0.03669894,178.86,178.83,0.03896819]
[1747926041397,0.03669894,178.86,178.83,5.63016819]
[1747926041697,0.03669894,178.86,178.83,0.03896819]
[1747926042403,0.03669894,178.86,178.84,5.5908]
[1747926042896,0.03669894,178.86,178.83,0.03896819]
[1747926043499,5.591,178.84,178.83,0.03896819]
[1747926044393,10.02680056,178.86,178.77,130.16]
[1747926044595,5.5925,178.8,178.77,130.16]
[1747926044795,1.9722,178.85,178.77,130.16]
[1747926044796,130.18,178.85,178.77,130.16]
[1747926044996,135.771,178.85,178.77,130.16]
[1747926045298,130.18,178.85,178.77,130.16]
[1747926045495,0.03636052,178.83,178.79,5.62939166]
[1747926045701,5.62796052,178.83,178.79,5.62939166]